Cogmind - Beta 15 @@@ ROGUE MODE // 2025.05.25 @ 03:23:35 Player: Moddy Result: Destroyed by Y-45 Defender with Beam Rifle Performance ------------- Evolutions (2) 1000 Regions Visited (4) 800 Robots Destroyed (27) 135 Value Destroyed (668) 668 Prototype IDs (1) 20 Alien Tech Used (0) 0 Bonus (0) 0 TOTAL SCORE: 2623 Bonus ------- None Cogmind --------- Core Integrity 0/550 Matter 137/300 Energy 154/300 System Corruption 0% Temperature Warning (341) Movement Core (550) Ox10 Location -8/Materials Parts ------- > --- POWER (1) -------- (None) > --- PROPULSION (4) --- (None) > --- UTILITY (4) ------ Large Storage Unit Large Battery > --- WEAPON (2) ------- Advanced Beam Cannon Advanced Beam Cannon > --- INVENTORY (15) --- Light Nuclear Core Medium Laser Light Assault Rifle Peak State ------------ > --- POWER ------------ Light Ion Engine > --- PROPULSION ------- Aluminum Leg Aluminum Leg Wheel Compact Wheel > --- UTILITY ---------- Large Storage Unit Large Battery Weapon Shielding > --- WEAPON ----------- Advanced Beam Cannon EMP Blaster > --- INVENTORY -------- Light Ion Engine Light Ion Engine Terrain Scanner Medium Laser Advanced Beam Cannon Light Assault Rifle Light Assault Rifle Light Assault Rifle [Rating: 14] Favorites ----------- Power Light Ion Engine Engine Light Ion Engine Power Core Light Nuclear Core Propulsion Compact Wheel Leg Aluminum Leg Wheel Compact Wheel Utility Large Storage Unit Device Terrain Scanner Storage Large Storage Unit Protection Weapon Shielding Weapon Light Assault Rifle Energy Gun Medium Laser Energy Cannon Advanced Beam Cannon Ballistic Gun Light Assault Rifle Launcher EMP Blaster Build | -11 -10 -9 -9 -8 ------- Run | Yrd Mat Mat Min Mat Slots Evolved 4 | . . 2 . 2 Power . | . . . . . Propulsion 2 | . . 1 . 1 Utility 2 | . . 1 . 1 Weapon . | . . . . . Parts Attached 27 | 6 6 7 . 8 Power 5 | 1 1 1 . 2 Engine 4 | 1 1 1 . 1 Core 1 | . . . . 1 Reactor . | . . . . . Propulsion 6 | 2 1 1 . 2 Treads . | . . . . . Leg 3 | . . 1 . 2 Wheel 3 | 2 1 . . . Hover . | . . . . . Flight . | . . . . . Utility 6 | 1 2 2 . 1 Device 1 | . . . . 1 Storage 4 | 1 2 1 . . Processor . | . . . . . Hackware . | . . . . . Protection 1 | . . 1 . . Artifact . | . . . . . Weapon 10 | 2 2 3 . 3 Energy Gun 1 | . 1 . . . Energy Cannon 2 | . . 1 . 1 Ballistic Gun 6 | 2 1 1 . 2 Ballistic Cannon . | . . . . . Launcher 1 | . . 1 . . Special Weapon . | . . . . . Impact Weapon . | . . . . . Slashing Weapon . | . . . . . Piercing Weapon . | . . . . . Special Melee Weapon . | . . . . . Unidentified Prototypes 1 | . . 1 . . Parts Lost 18 | . 3 1 . 14 Power 5 | . 1 . . 4 Propulsion 6 | . . 1 . 5 Utility 2 | . . . . 2 Weapon 5 | . 2 . . 3 Highest Loss Streak 11 | . 3 1 . 11 To Critical Strikes 1 | . . . . 1 Average Backups 6 | 2 4 7 9 6 Power 1 | . 1 1 2 1 Propulsion 1 | . 2 1 1 . Utility . | . . . 1 . Weapon 2 | . . 4 5 4 Tool/Special . | . . . . . Unused Backups 3 | . . 3 . . Power . | . . . . . Propulsion . | . . . . . Utility . | . . . . . Weapon 3 | . . 3 . . Tool/Special . | . . . . . Average Slot Usage (%) 85 | . 86 93 100 68 Engine 10 | . 13 11 11 6 Leg 4 | . . 4 11 11 Wheel 21 | . 28 23 22 9 Storage 19 | . 17 22 22 18 Protection 5 | . . 9 11 5 Energy Gun 4 | . 8 3 . . Energy Cannon 4 | . . 7 11 4 Ballistic Gun 9 | . 17 6 . 3 Launcher 3 | . . 4 11 6 Peak Build Rating 14 | 6 7 13 13 14 Average Rating 8 | 4 6 11 13 9 On Entrance 7 | . 6 7 13 13 Naked Turns . | . . . . . Heaviest Build 39 | 11 29 39 35 36 Greatest Support 42 | 32 32 42 26 26 Greatest Overweight (x) 9 | . 1 2 1 9 Average Overweight (x) . | . . . 1 1 Largest Inventory Capacity 15 | 8 15 15 15 15 Average Capacity 14 | 7 14 15 15 15 Most Carried 10 | 4 6 10 9 8 Average Carried 6 | 2 4 7 9 6 Final Capacity 15 | 8 15 15 15 15 Final Carried 9 | 4 5 9 9 3 Class Distribution -------------------- 100% | Mutant Dominant Class ---------------- Mutant | -10/Materials Mutant | -9/Materials Mutant | -9/Mines Mutant | -8/Materials Resources | -11 -10 -9 -9 -8 ----------- Run | Yrd Mat Mat Min Mat Matter Collected 439 | 245 68 126 . . Remotely . | . . . . . Salvage Created 846 | . 159 67 . 620 Parts 49 | . 11 8 . 30 Haulers Intercepted . | . . . . . Recyclers Shooed 1 | . . . . 1 Parts Field Recycled . | . . . . . Retrieved Matter . | . . . . . Parts Self-Destructed . | . . . . . Prevented . | . . . . . Kills | -11 -10 -9 -9 -8 ------- Run | Yrd Mat Mat Min Mat Combat Hostiles Destroyed 21 | . 8 3 . 10 Guns 11 | . 6 3 . 2 Cannons 3 | . . . . 3 AOE 6 | . 1 . . 5 Classes Destroyed 6 | . 3 . . 3 Builder 3 | . . . . 3 Recycler 1 | . . . . 1 Watcher 2 | . 1 1 . . Swarmer 11 | . 6 3 . 2 Grunt 9 | . 2 . . 7 Hunter 1 | . . . . 1 Best Kill Streak 7 | . 3 3 . 7 Combat Bots Only 5 | . 3 3 . 5 Max Kills in Single Turn 2 | . 2 1 . 2 Gunslinging . | . . . . . Exploded 2 | . 1 . . 2 Melee . | . . . . . Uniques/NPCs Destroyed . | . . . . . Combat | -11 -10 -9 -9 -8 -------- Run | Yrd Mat Mat Min Mat Hostile Shots Fired 247 | . 67 6 . 174 Missed 77 | . 17 4 . 56 Hits 170 | . 50 2 . 118 Projectile 170 | . 50 2 . 118 Critical Strikes 7 | . 2 . . 5 Damage Taken 2299 | . 543 15 . 1741 Core 654 | . 96 . . 558 Absorbed by Shields . | . . . . . Redirected to Shielding 52 | . . . . 52 Regen/Repaired (Parts) 30 | . . 30 . . Core Remaining (%) 87 | 100 61 . 100 . Volleys Fired 80 | . 28 8 . 44 Largest 2 | . 2 2 . 2 Hottest 136 | . 70 70 . 136 Shots Fired 124 | . 46 16 . 62 Gun 88 | . 46 16 . 26 Cannon 23 | . . . . 23 Launcher 13 | . . . . 13 Special . | . . . . . Kinetic 67 | . 33 8 . 26 Thermal 44 | . 13 8 . 23 Explosive . | . . . . . Electromagnetic 13 | . . . . 13 Robot Hit Streak 16 | . 6 4 . 16 Robot Miss Streak 4 | . 4 2 . 3 Penetration Max . | . . . . . Secondary Targets 1 | . 1 . . . Max Gunslinging Chain 1 | . 1 . . . Shots Hit Robots 67 | . 25 8 . 34 Core Hits 45 | . 13 4 . 28 Critical Kills . | . . . . . Critical Parts Destroyed 2 | . 2 . . . Critical Strikes 4 | . 3 1 . . Burn 2 | . 1 1 . . Destroy 2 | . 2 . . . Melee Attacks . | . . . . . Impact . | . . . . . Slashing . | . . . . . Piercing . | . . . . . Sneak Attacks . | . . . . . Combat Hostiles . | . . . . . Follow-up Attacks . | . . . . . Damage Inflicted 1671 | . 583 89 . 999 Guns 512 | . 277 89 . 146 Cannons 243 | . . . . 243 Explosions 915 | . 305 . . 610 Melee . | . . . . . Ramming 1 | . 1 . . . Kinetic 350 | . 179 25 . 146 Thermal 437 | . 98 64 . 275 Explosive 305 | . 305 . . . Electromagnetic 578 | . . . . 578 Impact . | . . . . . Slashing . | . . . . . Piercing . | . . . . . Highest Corruption . | . . . . . Average Corruption . | . . . . . Corruption Purged . | . . . . . Corruption Blocked . | . . . . . Overload Shots . | . . . . . Overflow Damage 34 | . 34 . . . Projectiles . | . . . . . Explosions 34 | . 34 . . . Melee . | . . . . . Knockbacks . | . . . . . Impact . | . . . . . Kinetic . | . . . . . Secondary . | . . . . . Self-Inflicted Damage 188 | . 61 . . 127 Shots 6 | . 1 . . 5 Rammed 1 | . 1 . . . Targets Rammed 1 | . 1 . . . Kicked . | . . . . . Crushed . | . . . . . Highest Temperature 332 | . 60 48 . 332 Average Temperature 68 | . 16 15 . 117 Received Heat Transfer 906 | . 114 . . 792 Effects 1 | . . . . 1 Short Circuit 1 | . . . . 1 Siege Activations . | . . . . . Martial Activations . | . . . . . Shielding Activations . | . . . . . Robots Disrupted . | . . . . . Combat Hostiles . | . . . . . Robots Corrupted 1 | . . . . 1 Combat Hostiles . | . . . . . Parts Fried 3 | . . . . 3 Impact Corruptions . | . . . . . Robots Melted . | . . . . . Combat Hostiles . | . . . . . Parts Melted 1 | . . 1 . . Heat Transferred 1123 | . 370 259 . 494 Parts Sabotaged . | . . . . . Parts Stolen . | . . . . . Parts Stripped . | . . . . . Power Chain Reactions 2 | . . . . 2 Alert | -11 -10 -9 -9 -8 ------- Run | Yrd Mat Mat Min Mat Maximum Alert Level . | . . . . . Low Security (%) 100 | 100 100 100 100 100 Level 1 . | . . . . . Level 2 . | . . . . . Level 3 . | . . . . . Level 4 . | . . . . . Level 5 . | . . . . . High Security . | . . . . . Max Security . | . . . . . Peak Influence 128 | . 128 101 . 110 Initial 49 | . . 49 . . Average 50 | . 70 41 . 56 Influence Increases 670 | . 258 92 . 320 Destroy 0b10 Robot/C 420 | . 160 60 . 200 Destroy 0b10 Robot/NC 30 | . 5 5 . 20 Destroy Leader 84 | . 32 12 . 40 Disable Machine 60 | . 30 . . 30 Destroy Structure 31 | . 31 . . . Lose Combat Pursuer 45 | . . 15 . 30 Influence Decreases 570 | . 140 210 . 220 Entered New Map 69 | . . 69 . . Time Decay 321 | . 110 131 . 80 Lost Part 180 | . 30 10 . 140 Squads Dispatched 4 | . . . . 4 Investigation 1 | . . . . 1 Extermination . | . . . . . Reinforcement 1 | . . . . 1 Assault . | . . . . . Garrison 2 | . . . . 2 Intercept . | . . . . . Searches Triggered . | . . . . . Construction Impeded . | . . . . . Haulers Reinforced . | . . . . . Active Scanning Responses . | . . . . . Cargo Convoy Interrupts . | . . . . . Stealth | -11 -10 -9 -9 -8 --------- Run | Yrd Mat Mat Min Mat Distress Signals 4 | . 1 . . 3 Communications Jammed . | . . . . . Distress Signals . | . . . . . Times Spotted 28 | . 9 6 . 13 Peak Tracking Total 5 | . 4 4 . 5 Tactical Retreats 3 | . . 1 . 2 Traps | -11 -10 -9 -9 -8 ------- Run | Yrd Mat Mat Min Mat Traps Triggered 2 | . . . . 2 Indirectly 2 | . . . . 2 Trap Hack Attempts . | . . . . . Triggered . | . . . . . Disarmed . | . . . . . Reprogrammed . | . . . . . Reused . | . . . . . Traps Extracted . | . . . . . Installed . | . . . . . Triggered . | . . . . . Machines | -11 -10 -9 -9 -8 ---------- Run | Yrd Mat Mat Min Mat Machines Disabled 4 | . 2 . . 2 Max in Single Turn 2 | . 2 . . 1 Machines Repaired . | . . . . . Machines Dismantled . | . . . . . Machines Sabotaged . | . . . . . Overloaded Fab Kills . | . . . . . Hacking | -11 -10 -9 -9 -8 --------- Run | Yrd Mat Mat Min Mat Machines Accessed 3 | . 1 2 . . Terminals 2 | . 1 1 . . Fabricators . | . . . . . Repair Stations 1 | . . 1 . . Recycling Units . | . . . . . Scanalyzers . | . . . . . Garrison Access . | . . . . . Total Hacks 9 | . 4 5 . . Successful 5 | . 3 2 . . Failed 4 | . 1 3 . . Catastrophic . | . . . . . Database Lockouts . | . . . . . Manual 2 | . . 2 . . Terminals 6 | . 4 2 . . Fabricators . | . . . . . Repair Stations 3 | . . 3 . . Recycling Units . | . . . . . Scanalyzers . | . . . . . Garrison Access . | . . . . . Terminal Hacks 3 | . 3 . . . Record 3 | . 3 . . . Fabricator Hacks . | . . . . . Repair Station Hacks 2 | . . 2 . . Scan Component 1 | . . 1 . . Repair 1 | . . 1 . . Recycling Unit Hacks . | . . . . . Scanalyzer . | . . . . . Garrison Access Hacks . | . . . . . Unauthorized Hacks . | . . . . . Terminals . | . . . . . Fabricators . | . . . . . Repair Stations . | . . . . . Recycling Units . | . . . . . Scanalyzers . | . . . . . Garrison Access . | . . . . . Data Cores Recovered . | . . . . . Used . | . . . . . Hacking Detections 3 | . 1 2 . . Full Trace Events 1 | . 1 . . . Feedback Events . | . . . . . Feedback Blocked . | . . . . . Robot Schematics Acquired . | . . . . . Robots Built . | . . . . . Authchips . | . . . . . Time . | . . . . . Total Robot Build Rating . | . . . . . Part Schematics Acquired . | . . . . . Parts Built . | . . . . . Authchips . | . . . . . Time . | . . . . . Total Part Build Rating . | . . . . . Parts Repaired 1 | . . 1 . . Time 26 | . . 26 . . Parts Recycled . | . . . . . Recycled Matter . | . . . . . Retrieved Matter . | . . . . . Retrieved Components . | . . . . . Parts Scanalyzed . | . . . . . Part Schematics Acquired . | . . . . . Parts Damaged . | . . . . . Bothacking | -11 -10 -9 -9 -8 ------------ Run | Yrd Mat Mat Min Mat Used RIF Installer . | . . . . . Robots Hacked . | . . . . . Non-combat . | . . . . . Combat . | . . . . . Robot Hacks Applied . | . . . . . Relay Couplers Released . | . . . . . Fabnet Peak Effective % . | . . . . . Robots Rewired . | . . . . . Allies Hacked . | . . . . . Hacks Repelled . | . . . . . Allies | -11 -10 -9 -9 -8 -------- Run | Yrd Mat Mat Min Mat Total Allies . | . . . . . Largest Group . | . . . . . Highest-Rated Group . | . . . . . Highest-Rated Ally . | . . . . . Total Orders . | . . . . . Ally Attacks . | . . . . . Total Damage . | . . . . . Kills . | . . . . . Allies Corrupted . | . . . . . Allies Melted . | . . . . . Intel | -11 -10 -9 -9 -8 ------- Run | Yrd Mat Mat Min Mat Active Infowar (turns) 54 | . . . . 54 Terrain 54 | . . . . 54 Robot Analysis Total . | . . . . . Derelict Logs Recovered . | . . . . . Drone Launches . | . . . . . Drone Recoveries . | . . . . . Exploration | -11 -10 -9 -9 -8 ------------- Run | Yrd Mat Mat Min Mat Turns Passed 867 | 60 292 318 15 182 Spaces Moved 535 | 46 196 235 15 43 Core 5 | 3 . . . 2 Treads . | . . . . . Legs 6 | . . . . 6 Wheels 524 | 43 196 235 15 35 Hover . | . . . . . Flight . | . . . . . Fastest Speed 50 | 50 90 93 105 105 Average Speed 103 | 96 97 102 105 146 Slowest Speed 500 | 100 105 130 105 500 Overloaded Moves . | . . . . . Propulsion Burnouts . | . . . . . Robots Hopped . | . . . . . Potential Cave-ins . | . . . . . Cave-ins Triggered . | . . . . . Exploration Rate (%) 15 | 4 35 19 8 9 Regions Visited 4 Branch Regions 1 Pre-discovered Areas . | . . . . . Known Exits Taken . | . . . . . Unknown Exits Taken 4 | 1 1 1 1 . Scrap Searched . | . . . . . Spaces Dug . | . . . . . Terrain Destroyed 32 | . 32 . . . Melee . | . . . . . Projectile . | . . . . . AOE 32 | . 32 . . . Terrain Rammed . | . . . . . Walls Destroyed . | . . . . . Machines Disabled . | . . . . . Actions | -11 -10 -9 -9 -8 --------- Run | Yrd Mat Mat Min Mat Total 730 | 61 254 296 14 105 Wait 46 | . 16 27 . 3 Move 531 | 45 195 234 14 43 Hop . | . . . . . Pick Up 32 | 10 6 13 . 3 Fast Attach . | . . . . . Attach 24 | 6 5 4 . 9 Detach . | . . . . . Swap 10 | . 2 5 . 3 Drop 6 | . 1 5 . . Fire 80 | . 28 8 . 44 Melee . | . . . . . Ram 1 | . 1 . . . Kick . | . . . . . Crush . | . . . . . Escape Stasis . | . . . . . Rewire . | . . . . . Trap . | . . . . . Miscellaneous . | . . . . . Route ------- -11/Scrapyard -10/Materials -9/Materials -9/Mines -8/Materials History --------- Turn | Location | Event 24 | -11/Scrapyard | Discovered new exit (range 16) 61 | -11/Scrapyard | Entered Materials 221 | -10/Materials | Lost 3 parts (1p2w) 261 | -10/Materials | Discovered new exit (range 10) 311 | -10/Materials | Build established: Mutant 353 | -10/Materials | Entered another Materials area 353 | -9/Materials | Evolved 2 slots: Propulsion x1, Utility x1 558 | -9/Materials | Discovered new exit (range 13) 629 | -9/Materials | Repaired Wheel 671 | -9/Materials | Entered Mines 672 | -9/Mines | Met a Derelict bent on vengeance 673 | -9/Mines | Discovered new exit (range 14) 678 | -9/Mines | Assembled infested the area 686 | -9/Mines | Entered Materials 686 | -8/Materials | Evolved 2 slots: Propulsion x1, Utility x1 750 | -8/Materials | Garrison activated, responded to threat 782 | -8/Materials | Lost 3 parts (2n1u) 832 | -8/Materials | Core integrity fell below 50% 845 | -8/Materials | Core integrity fell below 20% 868 | -8/Materials | Destroyed by Y-45 Defender with Beam Rifle Last Messages --------------- G-47 Trooper IFF system glitched. K-01 Serf collects debris. Critical hit (Burn: +37). U-05 Engineer lays Concrete. S-10 Pest destroyed. U-05 Engineer lays Concrete. U-05 Engineer suffers critical hit (Burn). G-47 Trooper destroyed. U-05 Engineer lays Concrete. K-01 Serf collects debris. U-05 Engineer lays Concrete. K-01 Serf collects debris. U-05 Engineer lays Concrete. U-05 Engineer destroyed. U-05 Engineer lays Concrete. K-01 Serf collects debris. G-47 Trooper destroyed. Adv. Beam Cannon broken. Overheating: Short circuit. U-05 Engineer lays Concrete. Map ----- +----------------------------------------------------+ | ?????????????????????????????????????????????????? | | ?????????????????????????????????????????????????? | | ???????????????????????????#######???????????????? | | ??????????????????????????## #???????????????? | | ???????????????????????????# #??#????????????? | | ???????????????????????????# #?#?????????????? | | ??????????????????? ???????# #???????????????? | | ???????????????????????????# #???????????????? | | ???????????????????????????# #???????????????? | | ???????????????????????????# #???????????????? | | ?????????????????????# #?# #???????????????? | | ?????????????????????# ??# #???????????????? | | ????????????????? ???# ??# #???????"???????? | | ????????????????+ ??# t ??# #???????????????? | | ????????????????# ?# ??# #???????????????? | | ????????????????# ?# ??# #???????????????? | | ?????????????#### ? ??# #??????? ???????? | | ???????????? ### ###% % #???????????????? | | ???????????? %^ u = %=##???????#??????? | | ???????????? % [%[%%##### +?????? | | ???????????? *=[%==! Y #???????? | | ??????????? =%==%= #?#?????? | | ???????????? ==% != #???????? | | ?????????????#### ! #???????? | | ????????????????# %! #???????? | | ?????????? + @ u #???????? | | ????????????????# #???????? | | ????????????????# ^ ???????? | | ????????????????# ! ^ ???????? | | ????????????????# ########### ???????? | | ????????????????# k ???????#??? ????????? | | ????????????????# ???????????? " "????????? | | ??????????????????????????????? " ?????????? | | ???????????????????????????????? """"???????????? | | ???????????????????????????????? ????????????? | | ???????????????????????????????? ?????????????? | | ?????????????????????????????????????????????????? | | ?????????????????????????????????????????????????? | | ?????????????????????????????????????????????????? | | ?????????????????????????????????????????????????? | | ?????????????????????????????????????????????????? | | ?????????????????????????????????????????????????? | | ?????????????????????????????????????????????????? | | ?????????????????????????????????????????????????? | | ?????????????????????????????????????????????????? | | ?????????????????????????????????????????????????? | | ?????????????????????????????????????????????????? | | ?????????????????????????????????????????????????? | | ?????????????????????????????????????????????????? | | ?????????????????????????????????????????????????? | +----------------------------------------------------+ Best States ------------- Heat Dissipation 31 Energy Generation 14 Energy Capacity 360 Matter Stores 300 Matter Capacity 300 Sight Range 16 Terrain Scan Range 14 Terrain Scan Density 10 Weapon Shielding 33 Evasion (%) 42 Item Schematics ----------------- None Robot Schematics ------------------ None Fabricated ------------ Nothing Repaired ---------- Wheel | 25% | -9/Materials Alien Tech Used ----------------- None Achievements -------------- None Challenges ------------ None Game ------ Seed ExoskeletonSpliceShovel Manual? 0 Play Time 00:14:41 Cumulative 6.7 hours Start 2025.05.24 @ 23:47:47 End 2025.05.25 @ 03:23:35 Sessions 1 Manual Loads 0 Difficulty Rogue Special Mode None Game No. 18 Rogue 18 Adventurer 0 Explorer 0 Win Type - Total 0 Types 0/0/0/0/0/0/0/0/0/0 Lore% 8 Gallery% 17 Achievement% 13 Wizard Run 0 Options --------- Layout 1 ASCII 0 Keyboard 0 Movement Numpad Keybinds 0 Fullscreen 1 Font 32/SmallcapsGlow Map View 77x35 Zoom Use 3% Tactical HUD 0 Map Filters NONE Filters NONE Steam 1 RUN: 1f8ce43a-54dc-4362-bfde-71b75cc2e411